Cogmind - Beta 16 @@@ ROGUE MODE // 2026.01.26 @ 23:25:11 Player: chebyrekser Result: Destroyed by P-80 Master with Gamma Rifle Performance ------------- Evolutions (8) 4000 Regions Visited (19) 3800 Robots Destroyed (129) 645 Value Destroyed (6248) 6248 Prototype IDs (160) 3200 Alien Tech Used (0) 0 Bonus (1970) 1970 TOTAL SCORE: 19863 Bonus ------- High Alert Combat Kills 163 Follower Combat Kills 507 Registered with UFD 300 Met Warlord at Base 500 MAIN.C Attacked Warlord 500 Cogmind --------- Core Integrity 0/1450 Matter 23/300 Energy 99/100 System Corruption 12% Temperature Cool (0) Movement Core (50) Location -2/Research Parts ------- > --- POWER (2) -------- (None) > --- PROPULSION (6) --- (None) > --- UTILITY (13) ----- Advanced Melee Analysis Suite > --- WEAPON (2) ------- (None) > --- INVENTORY (5) ---- Cooled Q-thruster Concept Lightning Penetrator Concept Helical Railcannon Concept Rapid Grenade Launcher Peak State ------------ > --- POWER ------------ Particle Reactor Micro Antimatter Reactor > --- PROPULSION ------- Experimental VSS Leg Experimental Armored Exoskeleton > --- UTILITY ---------- Advanced Heat Sink Advanced Signal Interpreter Experimental Active Sensor Suite Concept Hypertargeting System Concept Countertargeting System Concept Countertargeting System Centrium Medium Armor Plating Experimental Remote Shield A0-MCA's Component Scanner Crosscalibrator Rainbow Chip > --- WEAPON ----------- Concept Heavy Railcannon > --- INVENTORY -------- Experimental Remote Shield Concept Lightning Penetrator Concept Helical Railcannon Concept Rapid Grenade Launcher [Rating: 207] Favorites ----------- Power Backup Power III Engine Backup Power III Power Core Backup Power VII Reactor Particle Reactor Propulsion Light Treads Treads Light Treads Leg Experimental Armored Exoskeleton Wheel Compact Wheel Hover Unit Cooled Antigrav System Flight Unit Field Propulsion Drive Utility Improved System Shield Device Experimental Sensor Array Storage Huge Storage Unit Processor Rainbow Chip Hackware Improved System Shield Protection Makeshift Light Armor Plating Weapon Subdweller Beam Cannon Energy Gun Gamma Rifle Energy Cannon Subdweller Beam Cannon Ballistic Gun Light Assault Rifle Ballistic Cannon Concept Heavy Railcannon Launcher Smartbomb Launcher Special Weapon RU-N14's Throwing Claymores v3 Impact Weapon Heavy Mace Slashing Weapon Nanosword Piercing Weapon Experimental Jetlance Build | -11 -10 -10 -8 -8 -6 -6 -6 -5 -5 -5 -4 -4 -4 -4 -3 -3 -3 -3 -2 ------- Run | Yrd Mat Sub Rec Scr Fac Was Fac Fac Was Fac Fac Upp Upp War Pro Res Qua Frg Res Slots Evolved 16 | . . . . . 8 . . 2 . . 2 . . . . 2 . . 2 Power 1 | . . . . . . . . . . . . . . . . 1 . . . Propulsion 4 | . . . . . 1 . . 1 . . . . . . . 1 . . 1 Utility 11 | . . . . . 7 . . 1 . . 2 . . . . . . . 1 Weapon . | . . . . . . . . . . . . . . . . . . . . Parts Attached 151 | 7 12 16 1 15 17 . 3 4 . 4 8 1 . 9 . 6 1 44 3 Power 14 | 1 3 2 . 2 1 . . . . . . . . . . 1 . 4 . Engine 8 | 1 3 2 . 1 . . . . . . . . . . . 1 . . . Core 2 | . . . . 1 1 . . . . . . . . . . . . . . Reactor 4 | . . . . . . . . . . . . . . . . . . 4 . Propulsion 45 | 2 4 4 1 2 1 . . 3 . . 3 . . 5 . 4 . 14 2 Treads 11 | 2 3 3 1 . . . . . . . . . . . . . . 2 . Leg 3 | . 1 . . . . . . . . . . . . . . . . 2 . Wheel 1 | . . 1 . . . . . . . . . . . . . . . . . Hover 12 | . . . . . . . . 2 . . . . . 3 . 1 . 6 . Flight 18 | . . . . 2 1 . . 1 . . 3 . . 2 . 3 . 4 2 Utility 52 | 2 3 2 . 7 8 . 3 1 . 4 3 1 . 1 . . . 16 1 Device 19 | 1 1 . . 4 2 . 1 . . 1 . . . . . . . 9 . Storage 4 | 1 2 . . . . . . . . . . . . . . . . 1 . Processor 8 | . . . . 1 4 . 1 . . 1 . . . . . . . . 1 Hackware 8 | . . . . 1 1 . . 1 . 2 2 . . 1 . . . . . Protection 13 | . . 2 . 1 1 . 1 . . . 1 1 . . . . . 6 . Artifact . | . . . . . . . . . . . . . . . . . . . . Weapon 40 | 2 2 8 . 4 7 . . . . . 2 . . 3 . 1 1 10 . Energy Gun 7 | . . 1 . . . . . . . . . . . 1 . . . 5 . Energy Cannon 6 | . . 4 . . . . . . . . 1 . . 1 . . . . . Ballistic Gun 10 | 2 2 2 . 2 2 . . . . . . . . . . . . . . Ballistic Cannon 4 | . . . . . 2 . . . . . . . . . . . . 2 . Launcher 4 | . . . . . 2 . . . . . 1 . . . . . . 1 . Special Weapon 6 | . . 1 . 2 . . . . . . . . . 1 . 1 . 1 . Impact Weapon 1 | . . . . . 1 . . . . . . . . . . . . . . Slashing Weapon 1 | . . . . . . . . . . . . . . . . . 1 . . Piercing Weapon 1 | . . . . . . . . . . . . . . . . . . 1 . Special Melee Weapon . | . . . . . . . . . . . . . . . . . . . . Unidentified Prototypes 2 | . . . . 1 . . . . . . . . . . . . . . 1 Corrupted Parts 6 | . . . . . . . . . . . . . . . . . . 6 . System Corruption 34 | . . . . . . . . . . . . . . . . . . 34 . Parts Lost 39 | . 1 7 . . . . . . . . 1 . . . . . . 28 2 Power 8 | . . 2 . . . . . . . . 1 . . . . . . 5 . Propulsion 8 | . 1 1 . . . . . . . . . . . . . . . 5 1 Utility 17 | . . 2 . . . . . . . . . . . . . . . 14 1 Weapon 6 | . . 2 . . . . . . . . . . . . . . . 4 . Highest Loss Streak 4 | . 1 2 . . . . . . . . 1 . . . . . . 4 1 To Critical Strikes . | . . . . . . . . . . . . . . . . . . . . Average Backups 13 | 5 19 23 24 14 4 4 4 4 4 3 3 3 4 3 4 3 4 3 3 Power . | . 1 1 1 . . . . . . . . . . . . . . . . Propulsion 4 | 3 6 9 10 5 . . . 1 1 . . . . . 1 . . . . Utility 2 | . 5 4 5 3 . . . 1 1 1 1 1 2 . . . . . . Weapon 4 | 1 5 7 8 5 2 3 2 1 2 2 1 1 2 3 3 3 4 2 2 Tool/Special . | . . . . . . . . . . . . . . . . . . . . Unused Backups 59 | 1 7 3 1 34 6 . 2 1 . . . 1 . 2 . . . 1 . Power 5 | . 1 . . 3 1 . . . . . . . . . . . . . . Propulsion 18 | 1 5 1 . 9 2 . . . . . . . . . . . . . . Utility 18 | . . 1 . 10 3 . 1 1 . . . 1 . . . . . 1 . Weapon 15 | . 1 1 1 9 . . 1 . . . . . . 2 . . . . . Tool/Special 3 | . . . . 3 . . . . . . . . . . . . . . . Average Slot Usage (%) 86 | . 98 91 100 82 71 88 93 91 90 87 88 85 80 91 95 90 95 67 5 Engine 9 | . 14 13 14 10 5 11 11 10 10 10 8 4 4 8 9 8 8 1 . Treads 14 | . 27 25 28 15 . . . . . . . . . . . . . . . Hover 1 | . . . . . . . . 4 5 3 . . . 3 13 10 4 3 . Flight 6 | . . . . 9 15 16 16 14 15 15 17 18 18 17 9 13 20 4 1 Device 6 | . 12 4 . 3 9 11 11 10 10 10 9 8 4 4 4 4 4 7 1 Storage 7 | . 14 14 14 7 . . . . . . . . . . . . . . . Processor 8 | . . . . 2 19 27 27 25 25 25 22 22 22 18 18 16 16 16 1 Hackware 6 | . . . . . 10 11 11 12 15 14 21 22 22 25 27 25 25 9 . Protection 4 | . . 1 14 8 . . 4 5 5 5 4 4 4 4 4 4 4 5 . Energy Cannon 9 | . . 21 28 15 . . . . . . . . . . . 2 . . . Ballistic Gun 6 | . 28 4 . 7 5 5 5 4 . . . . . . . . . . . Peak Build Rating 207 | 7 9 18 18 38 72 72 77 96 91 94 111 114 116 144 144 153 156 207 35 Average Rating 53 | 5 8 11 18 18 62 71 76 87 91 89 102 105 109 127 144 145 154 143 19 On Entrance 76 | . 7 9 18 18 38 71 72 77 91 91 88 103 108 116 144 144 150 156 23 Avg Prop Armor Cover (%) 3 | . . 13 . . . . . 2 3 3 2 . . 1 1 3 1 4 11 Naked Turns 17 | . . . . 2 . . . . . . . . . . . . . . 15 Heaviest Build 105 | 13 88 105 105 105 26 11 13 13 12 12 17 24 26 32 32 35 30 78 15 Greatest Support 126 | 40 40 43 43 43 13 13 13 25 16 16 26 29 29 41 41 41 38 126 23 Greatest Overweight (x) 6 | . 2 6 2 2 1 . . . . . . . . . . 1 . 5 4 Average Overweight (x) . | . 1 2 2 . . . . . . . . . . . . . . . . Largest Inventory Capacity 25 | 8 25 25 25 25 5 5 5 5 5 5 5 5 5 5 5 5 5 5 5 Average Capacity 14 | 7 21 25 25 16 5 5 5 5 5 5 5 5 5 5 5 5 5 5 5 Most Carried 25 | 8 24 25 25 25 5 5 5 5 5 5 5 5 5 5 5 5 5 5 4 Average Carried 13 | 5 19 24 24 14 4 4 4 4 5 4 3 4 4 4 5 4 5 4 3 Final Capacity 25 | 8 25 25 25 5 5 5 5 5 5 5 5 5 5 5 5 5 5 5 5 Final Carried 25 | 8 24 25 25 5 4 5 5 5 5 5 4 5 4 5 5 5 5 3 4 Class Distribution -------------------- 62% | Mutant 17% | Hacker-Sprinter 10% | Hacker-Mutant 5% | Scavenger-Mutant 3% | Hacker-Scout Dominant Class ---------------- Mutant | -10/Materials Mutant | -10/Subcaves Mutant | -8/Recycling Mutant | -8/Scraptown Hacker-Scout | -6/Factory Hacker-Scout | -6/Waste Hacker-Sprinter | -6/Factory Hacker-Mutant | -5/Factory Hacker-Mutant | -5/Waste Hacker-Mutant | -5/Factory Hacker-Mutant | -4/Factory Hacker-Sprinter | -4/Upper Caves Hacker-Sprinter | -4/Upper Caves Hacker-Sprinter | -4/Warlord Hacker-Mutant | -3/Proximity Caves Hacker-Sprinter | -3/Research Hacker-Sprinter | -3/Quarantine Scavenger-Mutant | -3/Protoforge Scout | -2/Research Resources | -11 -10 -10 -8 -8 -6 -6 -6 -5 -5 -5 -4 -4 -4 -4 -3 -3 -3 -3 -2 ----------- Run | Yrd Mat Sub Rec Scr Fac Was Fac Fac Was Fac Fac Upp Upp War Pro Res Qua Frg Res Matter Collected 4250 | 290 921 324 10 149 260 . 96 36 . 58 124 93 115 90 . 120 43 1503 18 Remotely 60 | . . . . 60 . . . . . . . . . . . . . . . Salvage Created 5963 | 147 724 608 287 . 109 . 383 166 . 58 286 103 500 75 . 177 . 2340 . Parts 269 | 10 36 33 18 . 5 . 5 4 . . 17 . 3 1 . 3 . 134 . Haulers Intercepted 3 | . 1 . . . . . 1 1 . . . . . . . . . . . Recyclers Shooed 4 | . 3 . . . . . . . . . 1 . . . . . . . . Parts Field Recycled . | . . . . . . . . . . . . . . . . . . . . Retrieved Matter . | . . . . . . . . . . . . . . . . . . . . Parts Self-Destructed 34 | . . 16 . . . . . . . . . . 3 . 15 . . . . Prevented 3 | . . . . . . . . . . . . . . . 3 . . . . Parts Restored 2 | . . . . . . . . . . . . . . . . . . 2 . Faulty 2 | . . . . . . . . . . . . . . . . . . 2 . Kills | -11 -10 -10 -8 -8 -6 -6 -6 -5 -5 -5 -4 -4 -4 -4 -3 -3 -3 -3 -2 ------- Run | Yrd Mat Sub Rec Scr Fac Was Fac Fac Was Fac Fac Upp Upp War Pro Res Qua Frg Res Combat Hostiles Destroyed 87 | . 11 16 4 . 1 . . . . . 4 1 7 . . . . 43 . Melee 10 | . . . . . . . . . . . . 1 . . . . . 9 . Guns 20 | . 11 4 . . 1 . . . . . . . . . . . . 4 . Cannons 18 | . . 11 4 . . . . . . . . . . . . . . 3 . AOE 25 | . . . . . . . . . . . 4 . 7 . . . . 14 . Classes Destroyed 20 | 2 6 2 . . 1 . . . . . . . 2 1 . . . 6 . Worker 7 | . . . . . 1 . 1 1 . 2 1 . . . . . . 1 . Builder 3 | . . . . . . . . . . . . . . . . . . 3 . Tunneler 4 | 3 . . . . . . . . . 1 . . . . . . . . . Hauler 3 | . 1 . . . . . 1 1 . . . . . . . . . . . Recycler 10 | 1 4 . 1 . . . 1 . . . 2 . . . . 1 . . . Mechanic 1 | . . . . . . . . . . . . . . 1 . . . . . Operator 3 | . 1 . . . . . 1 . . . . . . . . 1 . . . Drone 1 | . . . . . . . . . . . . . . . . . . 1 . Turret 1 | . . 1 . . . . . . . . . . . . . . . . . Watcher 10 | . 2 . . . 1 . 4 2 . . . . . . . 1 . . . Swarmer 16 | . 6 4 . . . . . . . . 4 1 1 . . . . . . Grunt 8 | . 3 1 . . 1 . . . . . . . 2 . . . . 1 . Brawler 1 | . . . . . . . . . . . . . 1 . . . . . . Duelist 2 | . . . . . . . . . . . . . 2 . . . . . . Sentry 14 | . . 1 4 . . . . . . . . . 1 . . . . 8 . Hunter 2 | . . . . . . . . . . . . . . . . . . 2 . Programmer 13 | . . . . . . . . . . . . . . . . . . 13 . Decapitator 7 | . . . . . . . . . . . . . . . . . . 7 . Immortal 10 | . . . . . . . . . . . . . . . . . . 10 . V-Series 1 | . . . . . . . . . . . . . . . . . . 1 . Subdweller 12 | . 2 10 . . . . . . . . . . . . . . . . . Decomposer 2 | . . . . . . . . . . . . 1 1 . . . . . . Best Kill Streak 7 | 2 4 3 1 . 1 . 2 1 . 1 4 1 7 1 . 1 . 3 . Combat Bots Only 7 | . 3 3 1 . 1 . . . . . 4 1 7 . . . . 3 . Max Kills in Single Turn 3 | 1 1 1 1 . 1 . 1 1 . 1 3 1 3 1 . 1 . 2 . Gunslinging . | . . . . . . . . . . . . . . . . . . . . Exploded 3 | . . . . . . . . . . . 3 . 3 . . . . 2 . Melee 1 | . . . . . . . . . . . . 1 . . . . . 1 . Uniques/NPCs Destroyed . | . . . . . . . . . . . . . . . . . . . . Combat | -11 -10 -10 -8 -8 -6 -6 -6 -5 -5 -5 -4 -4 -4 -4 -3 -3 -3 -3 -2 -------- Run | Yrd Mat Sub Rec Scr Fac Was Fac Fac Was Fac Fac Upp Upp War Pro Res Qua Frg Res Hostile Shots Fired 747 | . 61 100 4 . 12 . . . . 10 14 19 . . . 1 24 371 131 Missed 270 | . 21 28 2 . 1 . . . . 5 5 13 . . . 1 10 126 58 Hits 477 | . 40 72 2 . 11 . . . . 5 9 6 . . . . 14 245 73 Melee 20 | . . . . . . . . . . . . . . . . . . 20 . Projectile 457 | . 40 72 2 . 11 . . . . 5 9 6 . . . . 14 225 73 AOE 12 | . . . . . . . . . . . . . . . . . . 11 1 Critical Strikes 28 | . . 1 . . . . . . . . . . . . . . . 24 3 Actively Blocked 1 | . . . . . . . . . . . . . . . . . . 1 . Part Disruptions 1 | . . . . . . . . . . . . . . . . . . . 1 Damage Taken 11685 | . 516 1088 30 . 198 . . . . 100 203 131 . . . . 298 7288 1833 Core 2428 | . 10 161 15 . 51 . . . . 61 39 17 . . . . 44 563 1467 Absorbed by Shields 771 | . . . . . . . . . . . . . . . . . . 771 . Redirected to Shielding 58 | . . . . . . . . . . . . . . . . . . 58 . Regen/Repaired (Parts) 344 | . . . . . . . 104 . . 1 . . . 15 . . . 224 . Core Remaining (%) 76 | 100 . . . 25 . . 94 . . 93 . . . . 95 . . 53 . Volleys Fired 452 | 10 85 60 5 1 17 . . . . . 3 17 5 3 . 9 . 234 3 Largest 2 | 2 2 2 2 1 2 . . . . . 1 1 1 1 . 1 . 2 1 Hottest 160 | 40 40 160 160 . 45 . . . . . 98 98 46 50 . 98 . 150 70 Shots Fired 613 | 20 170 102 10 1 24 . 2 . . . 3 17 5 3 . 9 . 244 3 Gun 420 | 20 170 26 . . 14 . 2 . . . . . . 2 . . . 186 . Cannon 139 | . . 74 10 . 4 . . . . . 1 17 . 1 . 7 . 22 3 Launcher 37 | . . . . . 5 . . . . . 2 . 5 . . . . 25 . Special 17 | . . 2 . 1 1 . . . . . . . . . . 2 . 11 . Kinetic 249 | 20 170 22 . . 18 . 2 . . . . . . . . . . 14 3 Thermal 125 | . . 80 10 . . . . . . . 1 17 . 2 . 7 . 8 . Explosive 43 | . . . . . 1 . . . . . 2 . 5 . . 1 . 34 . Electromagnetic 190 | . . . . . 4 . . . . . . . . . . . . 186 . Entropic 1 | . . . . . . . . . . . . . . 1 . . . . . Robot Hit Streak 24 | 4 24 10 4 5 11 . . . . . . . . 1 . 2 . 22 6 Robot Miss Streak 11 | 2 5 6 1 . 1 . 1 . . . . . . 2 . . . 11 . Penetration Max 1 | . . . . . . . . . . . . . . . . . . 1 . Secondary Targets 1 | . 1 . . . . . . . . . . . . . . . . . . Max Gunslinging Chain 1 | . 1 . . . . . . . . . . . . . . . . . . Shots Hit Robots 367 | 13 97 54 6 1 13 . 10 4 . 3 3 4 5 1 . 3 1 147 2 Core Hits 216 | 7 41 20 5 . 6 . 2 1 . . 6 1 25 1 . 1 . 97 3 Critical Kills 3 | . . 1 . . 1 . . . . . 1 . . . . . . . . Critical Parts Destroyed 5 | . 1 . . . . . 1 . . 1 . 2 . . . . . . . Critical Strikes 18 | . 1 1 . . 1 . 1 . . 1 1 2 . . . . . 10 . Meltdown 1 | . . 1 . . . . . . . . . . . . . . . . . Destroy 2 | . 1 . . . 1 . . . . . . . . . . . . . . Blast 1 | . . . . . . . . . . . . . . . . . . 1 . Smash 5 | . . . . . . . 1 . . 1 1 2 . . . . . . . Sever 4 | . . . . . . . . . . . . . . . . . . 4 . Impale 5 | . . . . . . . . . . . . . . . . . . 5 . Melee Attacks 197 | . . . . . 2 . 17 19 . 20 12 28 13 . . 16 5 65 . Impact 128 | . . . . . 2 . 17 19 . 20 12 28 13 . . 16 1 . . Slashing 46 | . . . . . . . . . . . . . . . . . 4 42 . Piercing 23 | . . . . . . . . . . . . . . . . . . 23 . Sneak Attacks 19 | . . . . . . . 3 2 . 3 3 1 1 . . 1 . 5 . Combat Hostiles . | . . . . . . . . . . . . . . . . . . . . Follow-up Attacks . | . . . . . . . . . . . . . . . . . . . . Damage Inflicted 16421 | 129 813 1337 170 . 230 . 658 360 . 305 587 305 1358 14 . 173 57 9624 301 Guns 3370 | 129 793 201 . . 138 . . . . . . . . 14 . . . 2095 . Cannons 2970 | . . 1136 164 . . . . . . . . . . . . . . 1436 234 Explosions 4875 | . . . . . 36 . . . . . 313 . 939 . . . . 3587 . Melee 4635 | . . . . . 56 . 658 360 . 305 274 305 419 . . 113 57 2088 . Ramming 108 | . 20 . 6 . . . . . . . . . . . . . . 15 67 Kinetic 2870 | 129 793 140 . . 138 . . . . . . . . . . . . 1436 234 Thermal 1375 | . . 1197 164 . . . . . . . . . . 14 . . . . . Explosive 4839 | . . . . . . . . . . . 313 . 939 . . . . 3587 . Electromagnetic 2131 | . . . . . 36 . . . . . . . . . . . . 2095 . Impact 2490 | . . . . . 56 . 658 360 . 305 274 305 419 . . 113 . . . Slashing 1790 | . . . . . . . . . . . . . . . . 60 57 1673 . Piercing 818 | . . . . . . . . . . . . . . . . . . 818 . Highest Corruption 63 | . . . . . 1 8 8 . 6 6 1 1 1 1 . . 4 63 11 Average Corruption 24 | . . . . . 1 4 8 . 6 6 1 1 1 1 . . 3 43 7 Corruption Purged . | . . . . . . . . . . . . . . . . . . . . Corruption Blocked . | . . . . . . . . . . . . . . . . . . . . Effects 197 | . . . . . 1 1 13 . . 8 . 4 3 . . . 1 161 5 Message Errors 35 | . . . . . . . 3 . . 3 . 1 1 . . . 1 23 3 Matter Fused 35 | . . . . . . 1 3 . . . . 2 . . . . . 28 1 Heat Flow Errors 27 | . . . . . 1 . 3 . . 3 . 1 2 . . . . 17 . Energy Discharges 13 | . . . . . . . 1 . . 1 . . . . . . . 11 . Parts Rejected 6 | . . . . . . . . . . . . . . . . . . 6 . Parts Fused 3 | . . . . . . . 1 . . . . . . . . . . 2 . Data Loss (minor) 18 | . . . . . . . . . . 1 . . . . . . . 17 . Data Loss (major) 9 | . . . . . . . . . . . . . . . . . . 8 1 Misfires 7 | . . . . . . . 2 . . . . . . . . . . 5 . Alerts 5 | . . . . . . . . . . . . . . . . . . 5 . Misdirections 15 | . . . . . . . . . . . . . . . . . . 15 . Weapon Failures 24 | . . . . . . . . . . . . . . . . . . 24 . Overload Shots . | . . . . . . . . . . . . . . . . . . . . Overflow Damage 2082 | . . 20 5 . 21 . 228 178 . 250 63 238 330 . . 73 2 622 52 Projectiles 320 | . . 20 5 . . . . . . . 4 . . . . . . 239 52 Explosions 60 | . . . . . . . . . . . . . . . . . . 60 . Melee 1702 | . . . . . 21 . 228 178 . 250 59 238 330 . . 73 2 323 . Knockbacks 19 | . . . 1 . . . 3 2 . . 2 . . . . 2 . 7 2 Impact 9 | . . . 1 . . . 3 2 . . 1 . . . . 2 . . . Kinetic 9 | . . . . . . . . . . . . . . . . . . 7 2 Secondary 1 | . . . . . . . . . . . 1 . . . . . . . . Self-Inflicted Damage 550 | . . . . . . . . . . . . . . . . . . 519 31 Shots 24 | . . . . . . . . . . . . . . . . . . 24 . Rammed 20 | . 2 . 1 . . . . . . . . . . . . . . 1 16 Targets Rammed 21 | . 2 . 2 . . . . . . . . . . . . . . 1 16 Kicked . | . . . . . . . . . . . . . . . . . . . . Crushed 1 | . . . 1 . . . . . . . . . . . . . . . . Highest Temperature 260 | . 18 183 114 . 193 . 258 . . 260 50 163 201 . . 64 . 259 . Average Temperature 70 | . 8 72 62 . 60 . 120 . . 125 28 61 93 . . 20 . 89 . Received Heat Transfer 1418 | . 168 267 . . 81 . . . . 36 27 9 . . . . 9 584 237 Effects 2 | . . . . . . . 2 . . . . . . . . . . . . Interference 2 | . . . . . . . 2 . . . . . . . . . . . . Siege Activations . | . . . . . . . . . . . . . . . . . . . . Martial Activations . | . . . . . . . . . . . . . . . . . . . . Shielding Activations . | . . . . . . . . . . . . . . . . . . . . Robots Disrupted 1 | . . . . . . . . . . . . . . . . . . 1 . Combat Hostiles 1 | . . . . . . . . . . . . . . . . . . 1 . Robots Corrupted 26 | . . . . . 1 . 3 3 . . 1 . 3 . . 2 . 13 . Combat Hostiles 16 | . . . . . . . . . . . . . 3 . . . . 13 . Parts Fried 45 | . . . . . . . 4 3 . 5 1 1 . . . 5 . 26 . Impact Corruptions 49 | . . . . . 1 . 6 6 . 6 2 9 16 . . 3 . . . Robots Melted 1 | . . 1 . . . . . . . . . . . . . . . . . Combat Hostiles 1 | . . 1 . . . . . . . . . . . . . . . . . Parts Melted 4 | . 1 3 . . . . . . . . . . . . . . . . . Heat Transferred 1851 | . . 1592 222 . . . . . . . . . . 37 . . . . . Parts Sabotaged . | . . . . . . . . . . . . . . . . . . . . Parts Stolen . | . . . . . . . . . . . . . . . . . . . . Parts Stripped . | . . . . . . . . . . . . . . . . . . . . Power Chain Reactions . | . . . . . . . . . . . . . . . . . . . . Alert | -11 -10 -10 -8 -8 -6 -6 -6 -5 -5 -5 -4 -4 -4 -4 -3 -3 -3 -3 -2 ------- Run | Yrd Mat Sub Rec Scr Fac Was Fac Fac Was Fac Fac Upp Upp War Pro Res Qua Frg Res Maximum Alert Level 3 | . . . . . 1 . . . . . . . . . . . 1 2 3 Low Security (%) 79 | 100 100 . 100 . 93 100 100 100 100 100 100 . . . . 100 88 29 . Level 1 13 | . . . . . 6 . . . . . . . . . . . 11 46 45 Level 2 7 | . . . . . . . . . . . . . . . . . . 24 48 Level 3 . | . . . . . . . . . . . . . . . . . . . 6 Level 4 . | . . . . . . . . . . . . . . . . . . . . Level 5 . | . . . . . . . . . . . . . . . . . . . . High Security . | . . . . . . . . . . . . . . . . . . . . Max Security . | . . . . . . . . . . . . . . . . . . . . Peak Influence 739 | 5 108 . 87 . 212 14 49 24 8 35 126 . . . . 107 229 625 739 Initial 344 | . . . 67 . . 14 2 14 8 . . . . . . . 51 123 344 Average 101 | . 17 . 15 . 34 10 18 5 5 5 80 . . . . 51 124 290 464 Influence Increases 5262 | 20 464 290 283 . 444 . 178 128 . 92 244 140 155 68 77 213 238 1673 555 Destroy 0b10 Robot/C 1880 | . 180 140 80 . 220 . . . . . 80 20 140 40 60 . 60 860 . Destroy 0b10 Robot/NC 240 | 20 40 . 5 . 25 . 40 20 . 15 15 . 15 5 . 15 . 25 . Destroy Leader 236 | . 36 . . . 42 . 10 6 . . 10 . . . 10 2 10 110 . Allied During Kill 43 | . . . . . 28 . . . . . . . . 8 7 . . . . Successful Hack 230 | . 13 . 14 . 20 . 51 44 . . 8 . . . . 57 9 . 14 Select Force Hacks 180 | . . . 180 . . . . . . . . . . . . . . . . Disable Machine 315 | . . . . . 60 . 15 . . . . . . . . 30 30 180 . Destroy Structure 273 | . . . 4 . 19 . 2 28 . 32 56 . . . . 64 24 38 6 Partial Spotted 210 | . 15 . . . 15 . 60 15 . . 30 . . . . 15 . 30 30 Lose Combat Pursuer 1455 | . 180 150 . . 15 . . 15 . 45 45 120 . 15 . 30 105 330 405 Active Sensor Use 200 | . . . . . . . . . . . . . . . . . . 100 100 Influence Decreases 4533 | 20 359 254 412 12 402 38 153 134 23 92 150 178 111 168 77 120 112 1279 439 Entered New Map 751 | . . 51 74 12 . 28 2 15 15 . . 36 11 100 . . 42 96 269 Time Decay 2939 | 20 359 163 338 . 232 10 141 119 8 88 140 142 100 68 37 120 50 654 150 Search Patrol Dispatched 100 | . . . . . . . . . . . . . . . . . . 100 . Lost Part 350 | . . 40 . . . . . . . . 10 . . . . . . 280 20 Lost Ally 114 | . . . . . 20 . 10 . . 4 . . . . 40 . 20 20 . Purge Threat 279 | . . . . . 150 . . . . . . . . . . . . 129 . Squads Dispatched 29 | . 3 . . . 3 . 3 1 . 4 1 . . . . . 2 8 4 Investigation 8 | . 1 . . . . . 1 . . 3 . . . . . . . 1 2 Extermination 11 | . . . . . 2 . 1 1 . 1 1 . . . . . . 4 1 Reinforcement 8 | . 2 . . . 1 . 1 . . . . . . . . . 2 1 1 Assault 1 | . . . . . . . . . . . . . . . . . . 1 . Garrison 1 | . . . . . . . . . . . . . . . . . . 1 . Intercept . | . . . . . . . . . . . . . . . . . . . . Searches Triggered 1 | . . . . . . . . . . . . . . . . . . 1 . Construction Impeded 3 | . . . . . 1 . . . . . . . . . . . . 1 1 Haulers Reinforced . | . . . . . . . . . . . . . . . . . . . . Active Scanning Responses 2 | . . . . . . . . . . . . . . . . . . 1 1 Cargo Convoy Interrupts . | . . . . . . . . . . . . . . . . . . . . Stealth | -11 -10 -10 -8 -8 -6 -6 -6 -5 -5 -5 -4 -4 -4 -4 -3 -3 -3 -3 -2 --------- Run | Yrd Mat Sub Rec Scr Fac Was Fac Fac Was Fac Fac Upp Upp War Pro Res Qua Frg Res Distress Signals 13 | . 2 . . . 1 . . 1 . . . . . . . 1 1 2 5 Communications Jammed 3 | . . . . . . . . . . 3 . . . . . . . . . Distress Signals 3 | . . . . . . . . . . 3 . . . . . . . . . Times Spotted 243 | . 29 20 1 . 3 6 9 2 6 7 5 8 1 12 . 5 13 72 44 Peak Tracking Total 22 | . 4 4 1 . 1 6 2 1 6 3 5 5 6 11 . 5 12 16 22 Tactical Retreats 48 | . 11 5 . . 1 . . 1 . 2 2 6 . 1 . 1 1 10 7 Traps | -11 -10 -10 -8 -8 -6 -6 -6 -5 -5 -5 -4 -4 -4 -4 -3 -3 -3 -3 -2 ------- Run | Yrd Mat Sub Rec Scr Fac Was Fac Fac Was Fac Fac Upp Upp War Pro Res Qua Frg Res Traps Triggered 27 | . 1 3 . . 6 . . 2 . 2 . . . . . 3 . 10 . Indirectly 4 | . . . . . 4 . . . . . . . . . . . . . . Trap Hack Attempts . | . . . . . . . . . . . . . . . . . . . . Triggered . | . . . . . . . . . . . . . . . . . . . . Disarmed . | . . . . . . . . . . . . . . . . . . . . Reprogrammed . | . . . . . . . . . . . . . . . . . . . . Reused . | . . . . . . . . . . . . . . . . . . . . Traps Extracted . | . . . . . . . . . . . . . . . . . . . . Installed . | . . . . . . . . . . . . . . . . . . . . Triggered . | . . . . . . . . . . . . . . . . . . . . Machines | -11 -10 -10 -8 -8 -6 -6 -6 -5 -5 -5 -4 -4 -4 -4 -3 -3 -3 -3 -2 ---------- Run | Yrd Mat Sub Rec Scr Fac Was Fac Fac Was Fac Fac Upp Upp War Pro Res Qua Frg Res Machines Disabled 29 | . . 1 . . 4 . 1 . . . . . 1 1 . 2 2 17 . Max in Single Turn 2 | . . 1 . . 1 . 1 . . . . . 1 1 . 1 . 2 . Garrison Access 5 | . . . . . . . 1 1 . . 1 . . . . 1 . 1 . Machines Repaired . | . . . . . . . . . . . . . . . . . . . . Machines Dismantled . | . . . . . . . . . . . . . . . . . . . . Machines Sabotaged . | . . . . . . . . . . . . . . . . . . . . Overloaded Fab Kills . | . . . . . . . . . . . . . . . . . . . . Hacking | -11 -10 -10 -8 -8 -6 -6 -6 -5 -5 -5 -4 -4 -4 -4 -3 -3 -3 -3 -2 --------- Run | Yrd Mat Sub Rec Scr Fac Was Fac Fac Was Fac Fac Upp Upp War Pro Res Qua Frg Res Machines Accessed 80 | . 4 1 12 1 5 . 10 9 . 12 3 1 1 3 . 8 2 6 2 Terminals 43 | . 3 . 6 . 4 . 5 7 . 5 1 . . . . 5 1 5 1 Fabricators 4 | . . . . . . . 1 . . 3 . . . . . . . . . Repair Stations 5 | . . . . . 1 . 2 . . 1 . . . . . 1 . . . Recycling Units 13 | . 1 . 6 . . . 1 1 . 2 . . . . . 1 . . 1 Scanalyzers 3 | . . . . . . . . . . 1 1 . . . . . 1 . . Garrison Access 5 | . . . . . . . 1 1 . . 1 . . . . 1 . 1 . Total Hacks 279 | . 11 1 34 8 26 . 38 29 . 43 13 1 1 7 . 23 5 34 5 Successful 159 | . 5 1 18 8 4 . 16 11 . 24 11 1 1 7 . 17 4 30 1 Failed 119 | . 6 . 16 . 22 . 22 18 . 19 1 . . . . 6 1 4 4 Catastrophic 21 | . . . 1 . 4 . 7 5 . 3 . . . . . . . . 1 Database Lockouts 1 | . . . . . . . . . . . 1 . . . . . . . . Manual 146 | . 10 . 22 . 21 . 16 13 . 15 8 . . . . 13 . 23 5 Terminals 179 | . 10 . 17 . 23 . 19 27 . 16 8 . . . . 20 3 33 3 Fabricators 18 | . . . . . . . 5 . . 13 . . . . . . . . . Repair Stations 15 | . . . . . 3 . 9 . . 2 . . . . . 1 . . . Recycling Units 28 | . 1 . 17 . . . 4 1 . 2 . . . . . 1 . . 2 Scanalyzers 15 | . . . . . . . . . . 10 3 . . . . . 2 . . Garrison Access 6 | . . . . . . . 1 1 . . 2 . . . . 1 . 1 . Terminal Hacks 75 | . . 1 5 8 1 . 5 6 . 4 5 1 1 7 . 9 2 20 . Record 1 | . . . . . . . 1 . . . . . . . . . . . . Part Schematic 1 | . . . . . . . 1 . . . . . . . . . . . . Robot Analysis 9 | . . . . 8 . . . . . . . . . . . 1 . . . Prototype ID Bank 6 | . . . . . . . . . . . . . . 5 . 1 . . . Open Door 5 | . . 1 . . . . . . . . . 1 1 2 . . . . . Level Access Points 4 | . . . . . . . 1 . . 1 1 . . . . . . 1 . Branch Access Points 2 | . . . . . . . . 1 . . . . . . . 1 . . . Emergency Access Points 4 | . . . . . . . . 1 . 1 . . . . . 1 . 1 . Terminal Index 6 | . . . 1 . . . . 1 . 1 1 . . . . . 1 1 . Fabricator Index 2 | . . . . . . . . 1 . . . . . . . . . 1 . Unreport Threat 2 | . . . . . 1 . . . . . . . . . . . . 1 . Locate Traps 10 | . . . . . . . 1 1 . . 1 . . . . 3 1 3 . Dispatch Records 1 | . . . . . . . . . . . . . . . . . . 1 . Maintenance Status 4 | . . . . . . . . . . 1 1 . . . . 1 . 1 . Security Status 2 | . . . . . . . . . . . . . . . . . . 2 . Patrol Status 1 | . . . . . . . . . . . . . . . . . . 1 . Garrison Status 1 | . . . . . . . . . . . . . . . . . . 1 . Recall Extermination 1 | . . . . . . . . . . . 1 . . . . . . . . Hauler Manifests 1 | . . . . . . . . 1 . . . . . . . . . . . Registered Components 1 | . . . . . . . . . . . . . . . . . . 1 . Zone Layout 10 | . . . 4 . . . 1 . . . . . . . . 1 . 4 . Proto ID Catalog 1 | . . . . . . . . . . . . . . . . . . 1 . Fabricator Hacks 6 | . . . . . . . 1 . . 5 . . . . . . . . . Load Schematic 5 | . . . . . . . 1 . . 4 . . . . . . . . . Build 1 | . . . . . . . . . . 1 . . . . . . . . . Repair Station Hacks 9 | . . . . . 1 . 5 . . 2 . . . . . 1 . . . Scan Component 4 | . . . . . . . 3 . . 1 . . . . . . . . . Repair 3 | . . . . . . . 2 . . 1 . . . . . . . . . Refit 2 | . . . . . 1 . . . . . . . . . . 1 . . . Recycling Unit Hacks 11 | . 1 . 5 . . . 1 1 . 2 . . . . . 1 . . . Retrieve Components 11 | . 1 . 5 . . . 1 1 . 2 . . . . . 1 . . . Scanalyzer 10 | . . . . . . . . . . 6 2 . . . . . 2 . . Insert Component 4 | . . . . . . . . . . 4 . . . . . . . . . Analyze 2 | . . . . . . . . . . 2 . . . . . . . . . Retrieve Study 4 | . . . . . . . . . . . 2 . . . . . 2 . . Garrison Access Hacks 5 | . . . . . . . 1 1 . . 1 . . . . 1 . 1 . Seal Access 5 | . . . . . . . 1 1 . . 1 . . . . 1 . 1 . Unauthorized Hacks 42 | . 4 . 7 . 2 . 3 3 . 5 3 . . . . 5 . 9 1 Terminals 33 | . 4 . 1 . 2 . 2 3 . 3 3 . . . . 5 . 9 1 Track 4 | . . . . . . . . . . . . . . . . . . 4 . Assimilate 4 | . . . . . . . 1 . . 1 . . . . . 2 . . . Botnet 16 | . 1 . 1 . 2 . 1 3 . 2 1 . . . . 2 . 2 1 Disrupt 5 | . . . . . . . . . . . 1 . . . . 1 . 3 . Operators 2 | . 1 . . . . . . . . . 1 . . . . . . . . Skim 2 | . 2 . . . . . . . . . . . . . . . . . . Fabricators 3 | . . . . . . . 1 . . 2 . . . . . . . . . Recompile 3 | . . . . . . . 1 . . 2 . . . . . . . . . Repair Stations . | . . . . . . . . . . . . . . . . . . . . Recycling Units 6 | . . . 6 . . . . . . . . . . . . . . . . Tunnel 6 | . . . 6 . . . . . . . . . . . . . . . . Scanalyzers . | . . . . . . . . . . . . . . . . . . . . Garrison Access . | . . . . . . . . . . . . . . . . . . . . Data Cores Recovered . | . . . . . . . . . . . . . . . . . . . . Used . | . . . . . . . . . . . . . . . . . . . . Hacking Detections 58 | . 4 . 10 . 5 . 7 8 . 9 1 . . . . 6 2 4 2 Full Trace Events 2 | . . . . . . . . . . 1 . . . . . . . . 1 Feedback Events . | . . . . . . . . . . . . . . . . . . . . Feedback Blocked . | . . . . . . . . . . . . . . . . . . . . Robot Schematics Acquired 4 | . . . . . . . . . . . . . . . . . 3 1 . Robots Built . | . . . . . . . . . . . . . . . . . . . . Authchips . | . . . . . . . . . . . . . . . . . . . . Time . | . . . . . . . . . . . . . . . . . . . . Total Robot Build Rating . | . . . . . . . . . . . . . . . . . . . . Part Schematics Acquired 9 | . . . . . . . 1 . . 2 . . . . . . 2 4 . Parts Built 1 | . . . . . . . . . . 1 . . . . . . . . . Authchips 1 | . . . . . . . . . . 1 . . . . . . . . . Time 47 | . . . . . . . . . . 47 . . . . . . . . . Total Part Build Rating 5 | . . . . . . . . . . 5 . . . . . . . . . Part Studies Acquired 4 | . . . . . . . . . . . 2 . . . . . 2 . . Parts Repaired 3 | . . . . . . . 2 . . 1 . . . . . . . . . Time 250 | . . . . . . . 150 . . 100 . . . . . . . . . Parts Recycled . | . . . . . . . . . . . . . . . . . . . . Recycled Matter . | . . . . . . . . . . . . . . . . . . . . Retrieved Matter . | . . . . . . . . . . . . . . . . . . . . Retrieved Components 33 | . 4 . 20 . . . 2 2 . 5 . . . . . . . . . Parts Scanalyzed 2 | . . . . . . . . . . 2 . . . . . . . . . Part Schematics Acquired 2 | . . . . . . . . . . 2 . . . . . . . . . Parts Damaged 2 | . . . . . . . . . . 2 . . . . . . . . . Bothacking | -11 -10 -10 -8 -8 -6 -6 -6 -5 -5 -5 -4 -4 -4 -4 -3 -3 -3 -3 -2 ------------ Run | Yrd Mat Sub Rec Scr Fac Was Fac Fac Was Fac Fac Upp Upp War Pro Res Qua Frg Res Used RIF Installer . | . . . . . . . . . . . . . . . . . . . . Robots Hacked 2 | . . . . . . . . . . . . . . . . 1 . 1 . Non-combat . | . . . . . . . . . . . . . . . . . . . . Combat . | . . . . . . . . . . . . . . . . . . . . Robot Hacks Applied . | . . . . . . . . . . . . . . . . . . . . Manual 2 | . . . . . . . . . . . . . . . . 1 . 1 . Relay Couplers Released . | . . . . . . . . . . . . . . . . . . . . Fabnet Peak Effective % . | . . . . . . . . . . . . . . . . . . . . Robots Rewired 2 | . . . . . . . . . . . . . 2 . . . . . . Allies Hacked . | . . . . . . . . . . . . . . . . . . . . Hacks Repelled . | . . . . . . . . . . . . . . . . . . . . Allies | -11 -10 -10 -8 -8 -6 -6 -6 -5 -5 -5 -4 -4 -4 -4 -3 -3 -3 -3 -2 -------- Run | Yrd Mat Sub Rec Scr Fac Was Fac Fac Was Fac Fac Upp Upp War Pro Res Qua Frg Res Total Allies 8 | . . . . 1 1 . 1 . . 1 . . 2 . . 1 . 1 . Largest Group 2 | . . . . 1 1 . 1 . . 1 . . 2 2 2 1 1 1 . Highest-Rated Group 148 | . . . . 90 95 . 26 . . 10 . . 94 94 94 148 148 116 . Highest-Rated Ally 148 | . . . . 90 95 . 26 . . 10 . . 47 47 47 148 148 116 . Total Orders 13 | . . . . 5 . . . . . . . . . 8 . . . . . STAY 7 | . . . . 3 . . . . . . . . . 4 . . . . . FOLLOW 6 | . . . . 2 . . . . . . . . . 4 . . . . . Ally Attacks 71 | . . . . . 17 . . . . . . . . 2 14 . 31 7 . Total Damage 2265 | . . . . . 1087 . . . . . . . . 43 273 . 598 264 . Kills 22 | . . . . . 13 . . . . . . . . 2 3 . 3 1 . Allies Corrupted 1 | . . . . . . . . . . . . . . . . . . 1 . Allies Melted 2 | . . . . . 1 . . . . . . . . 1 . . . . . Intel | -11 -10 -10 -8 -8 -6 -6 -6 -5 -5 -5 -4 -4 -4 -4 -3 -3 -3 -3 -2 ------- Run | Yrd Mat Sub Rec Scr Fac Was Fac Fac Was Fac Fac Upp Upp War Pro Res Qua Frg Res Active Infowar (turns) 9755 | 70 2615 1280 . 4 722 29 340 459 27 381 293 679 333 1028 447 294 111 515 128 Sensors 5498 | . . . . 4 722 29 340 459 27 381 293 679 333 1028 447 294 111 351 . A.S.S. 292 | . . . . . . . . . . . . . . . . . . 164 128 Traps 505 | . . . . . 432 29 44 . . . . . . . . . . . . Seismic 3965 | 70 2615 1280 . . . . . . . . . . . . . . . . . Jamming 413 | . . . . . . . . . . 134 279 . . . . . . . . Robot Analysis Total 9 | . . . . 8 . . . . . . . . . . . 1 . . . Derelict Logs Recovered 9 | . . 2 . 5 . . . . . . . 1 1 . . . . . . Drone Launches . | . . . . . . . . . . . . . . . . . . . . Drone Recoveries . | . . . . . . . . . . . . . . . . . . . . Exploration | -11 -10 -10 -8 -8 -6 -6 -6 -5 -5 -5 -4 -4 -4 -4 -3 -3 -3 -3 -2 ------------- Run | Yrd Mat Sub Rec Scr Fac Was Fac Fac Was Fac Fac Upp Upp War Pro Res Qua Frg Res Turns Passed 20067 | 158 2914 3690 1742 3567 744 29 340 459 27 381 293 679 333 1028 447 294 111 2520 311 Spaces Moved 18117 | 71 948 1164 531 2869 1295 88 784 1126 80 806 634 888 769 1466 421 547 399 2628 603 Core 443 | 1 . . . 2 . . . . . . . . . . . . . 157 283 Treads 3088 | 70 948 891 531 616 . . . . . . . . . . . . . 32 . Legs 716 | . . . . . . . . . . . . . . . . . . 716 . Wheels 273 | . . 273 . . . . . . . . . . . . . . . . . Hover 1631 | . . . . . . . . 3 . . . . . 34 421 224 . 949 . Flight 11966 | . . . . 2251 1295 88 784 1123 80 806 634 888 769 1432 . 323 399 774 320 Fastest Speed 8 | 50 160 175 320 37 32 32 32 32 34 34 32 33 33 28 49 23 23 8 27 Average Speed 84 | 158 258 287 320 97 33 32 32 32 34 34 35 33 33 30 49 36 23 58 39 Slowest Speed 560 | 160 320 560 320 320 112 32 32 52 34 34 42 42 33 51 49 104 23 320 250 Overloaded Moves 128 | . . . . . . . . 3 . . . . . . . . . 84 41 Propulsion Burnouts . | . . . . . . . . . . . . . . . . . . . . Robots Hopped 35 | . . . . . 4 . 7 1 . 7 2 . . . . . 9 1 4 Potential Cave-ins . | . . . . . . . . . . . . . . . . . . . . Cave-ins Triggered . | . . . . . . . . . . . . . . . . . . . . Exploration Rate (%) 51 | 5 95 77 85 86 21 75 24 30 64 25 19 85 77 81 61 17 45 39 22 Regions Visited 19 Branch Regions 9 Pre-discovered Areas 7 | . . . 6 1 . . . . . . . . . . . . . . . Known Exits Taken 10 | . . . . . . . 1 . . 1 1 1 1 1 1 1 1 1 . Unknown Exits Taken 5 | 1 1 1 1 1 . . . . . . . . . . . . . . . Scrap Searched 15 | . . 5 . 6 . . . . . . . 3 1 . . . . . . Spaces Dug 109 | . . . . . 1 . 2 14 . 15 10 25 8 . . 18 4 12 . Terrain Destroyed 265 | . . 14 4 . 15 . 2 14 . 15 33 39 53 . . 39 4 32 1 Melee 94 | . . . . . 1 . 2 14 . 15 9 22 8 . . 13 4 6 . Projectile 54 | . . 14 4 . . . . . . . 1 17 . . . 6 . 11 1 AOE 117 | . . . . . 14 . . . . . 23 . 45 . . 20 . 15 . Terrain Rammed . | . . . . . . . . . . . . . . . . . . . . Walls Destroyed . | . . . . . . . . . . . . . . . . . . . . Machines Disabled . | . . . . . . . . . . . . . . . . . . . . Actions | -11 -10 -10 -8 -8 -6 -6 -6 -5 -5 -5 -4 -4 -4 -4 -3 -3 -3 -3 -2 --------- Run | Yrd Mat Sub Rec Scr Fac Was Fac Fac Was Fac Fac Upp Upp War Pro Res Qua Frg Res Total 21984 | 99 1286 1399 563 3658 1596 88 836 1180 79 869 673 1212 819 2045 661 601 400 3255 665 Wait 2464 | . 183 113 22 655 196 . 31 13 . 8 12 259 25 534 241 2 4 125 41 Move 18029 | 70 947 1163 530 2868 1287 87 769 1124 79 789 629 887 768 1465 420 546 381 2625 595 Hop 34 | . . . . . 4 . 7 1 . 7 2 . . . . . 8 1 4 Pick Up 196 | 11 29 17 1 45 32 1 5 4 . 4 . 3 1 12 . 4 . 27 . Fast Attach 100 | 5 4 2 . 14 6 . 2 2 . 1 5 . 1 4 . 6 1 44 3 Attach 92 | 2 3 9 . 3 11 . 1 1 . 2 4 8 1 3 . 5 . 38 1 Detach 39 | . 1 3 . . 6 . . . . . 3 7 . . . 2 . 15 2 Swap 57 | . 9 19 1 . 2 . . 2 . 3 . . . 6 . 4 . 11 . Drop 230 | 1 23 13 2 72 33 . 4 6 . 3 3 3 2 17 . 7 1 40 . Fire 452 | 10 85 60 5 1 17 . . . . . 3 17 5 3 . 9 . 234 3 Melee 197 | . . . . . 2 . 17 19 . 20 12 28 13 . . 16 5 65 . Ram 18 | . . . . . . . . . . . . . . . . . . 2 16 Kick . | . . . . . . . . . . . . . . . . . . . . Crush 4 | . 2 . 2 . . . . . . . . . . . . . . . . Escape Stasis 68 | . . . . . . . . 8 . 32 . . . . . . . 28 . Rewire 4 | . . . . . . . . . . . . . 3 1 . . . . . Trap . | . . . . . . . . . . . . . . . . . . . . Miscellaneous . | . . . . . . . . . . . . . . . . . . . . Route ------- -11/Scrapyard -10/Materials (discovered 4 exits: [*Mat x2] / [*Min] / *Sub) -10/Subcaves (discovered 3 exits: [*Mat x2] / *Rec) -8/Recycling (discovered 2 exits: *Fac / *Scr) -8/Scraptown (discovered 2 exits: *Fac x2) -6/Factory (discovered 2 exits: Fac x2) -6/Waste -6/Factory (discovered 4 exits: *Fac x4) -5/Factory (discovered 3 exits: *Fac / Upp x2) -5/Waste -5/Factory (discovered 4 exits: *Fac x4) -4/Factory (discovered 5 exits: Res x4 / *Upp) -4/Upper Caves -4/Upper Caves -4/Warlord -3/Proximity Caves -3/Research (discovered 2 exits: *Qua x2) -3/Quarantine (discovered 2 exits: *Sec / *Frg) -3/Protoforge -2/Research History --------- Turn | Location | Event 42 | -11/Scrapyard | Discovered new exit (range 16) 159 | -11/Scrapyard | Entered Materials 314 | -10/Materials | Build established: Mutant 536 | -10/Materials | Discovered new exit (range 12) 659 | -10/Materials | Derelicts attacked the area 1218 | -10/Materials | Discovered new exit (range 12) 1327 | -10/Materials | Discovered new exit (range 14) 2086 | -10/Materials | Discovered new exit (range 16) 3073 | -10/Materials | Entered Subcaves 3096 | -10/Subcaves | Learned Materials stockpile data 3631 | -10/Subcaves | Disturbed a concealed Subdweller 3764 | -10/Subcaves | Discovered new exit (range 9) 4787 | -10/Subcaves | Shifting Twisted Machinery released Sub. Beam Cannon 4800 | -10/Subcaves | Learned 2 Materials zone layouts 4902 | -10/Subcaves | Shifting Twisted Machinery released Sub. Monowheel 5477 | -10/Subcaves | Discovered new exit (range 10) 5490 | -10/Subcaves | Core integrity fell below 50% 5531 | -10/Subcaves | A swath of the cavern ceiling suddenly collapsed 5597 | -10/Subcaves | Discovered new exit (range 2) 5608 | -10/Subcaves | A swath of the cavern ceiling suddenly collapsed 6093 | -10/Subcaves | A Subdweller sparked back to life 6093 | -10/Subcaves | A Subdweller sparked back to life 6173 | -10/Subcaves | Found Prototype Processor 6251 | -10/Subcaves | Shifting Twisted Machinery released Sub. Laser 6253 | -10/Subcaves | Shifting Twisted Machinery released Riot Gun 6763 | -10/Subcaves | Entered Recycling 8246 | -8/Recycling | Discovered new exit (range 15) 8419 | -8/Recycling | Scanned before Scraplab entrance 8467 | -8/Recycling | Entered Scraplab 8496 | -8/Recycling | Discovered new exit (range 3) 8505 | -8/Recycling | Entered Scraptown 8909 | -8/Scraptown | Visited Assassins FH 8960 | -8/Scraptown | Visited Shadow of the Wyrm 9001 | -8/Scraptown | Visited Symbiants 9046 | -8/Scraptown | Visited SPCMW 9081 | -8/Scraptown | Visited CPS Storage 9123 | -8/Scraptown | Visited Fellowship of the Rings 9155 | -8/Scraptown | Visited Awakened 9302 | -8/Scraptown | Scanned Subdweller tech in exchange for log data 9309 | -8/Scraptown | Learned Research stockpile data 9312 | -8/Scraptown | Learned Research garrison access intel 9315 | -8/Scraptown | Learned location of Quarantine (-3) 9325 | -8/Scraptown | Learned location of 2 exits from Factory 9328 | -8/Scraptown | Learned Research interactive machine intel 9772 | -8/Scraptown | Visited UFD Registry 9798 | -8/Scraptown | Registered with UFD as "Waveshaft" 9897 | -8/Scraptown | Visited Chapter 10 9948 | -8/Scraptown | Visited Botcube Research 10002 | -8/Scraptown | Visited Science Testing Area 10050 | -8/Scraptown | Visited Analyses Database 10086 | -8/Scraptown | Visited DA-N13 Charitable Foundation 10114 | -8/Scraptown | Found DCF Scrap (30 items) 10172 | -8/Scraptown | Visited Supply Room 10214 | -8/Scraptown | Visited Scrapoid Research Area 10252 | -8/Scraptown | Visited Infowarlord's Domain 10297 | -8/Scraptown | Visited A0-MCA Data Center 10342 | -8/Scraptown | Visited Derelict Rescue Squad 10538 | -8/Scraptown | Given an A+ rating by A0-MCA 10541 | -8/Scraptown | Found A0-MCA's Component Scanner 10551 | -8/Scraptown | Found Exp. Sensor Array 10586 | -8/Scraptown | Found Lrg. Botcube 10650 | -8/Scraptown | Found DRS Beacon 10724 | -8/Scraptown | Delivered Scrap Shield to a Scientist 10762 | -8/Scraptown | Found Scrap Suit 11049 | -8/Scraptown | Discovered new exit (range 11) 11174 | -8/Scraptown | Identified Rainbow Chip 11176 | -8/Scraptown | Attached Rainbow Chip, gained temporary slots: Power, Propulsion, Utility, Weapon 11218 | -8/Scraptown | Lrg. Botcube activated 11252 | -8/Scraptown | Lrg. Botcube completed mutation into treaded form, armed with 3 guns, 1 cannon. 11344 | -8/Scraptown | Attached CPS modules to Large Mutated Botcube. 12037 | -8/Scraptown | Discovered new exit (range 5) 12072 | -8/Scraptown | Entered Factory 12072 | -6/Factory | Accompanied by 1 ally 12072 | -6/Factory | Evolved 8 slots: Propulsion x1, Utility x7 12073 | -6/Factory | Identified exit to Factory 12162 | -6/Factory | Found Lrg. Botcube 12351 | -6/Factory | Lrg. Botcube activated 12570 | -6/Factory | Build established: Hacker-Scout 12749 | -6/Factory | Attached CPS modules to Large Mutated Botcube. 12816 | -6/Factory | Manually triggered Chute Trap 12816 | -6/Factory | Sucked down chute 12816 | -6/Factory | Entered Waste 12819 | -6/Waste | Spotted C-40 Crusher 12826 | -6/Waste | Spotted C-40 Crusher 12829 | -6/Waste | Spotted C-40 Crusher 12831 | -6/Waste | EMP discharged 12834 | -6/Waste | Spotted C-40 Crusher 12836 | -6/Waste | Spotted C-40 Crusher 12840 | -6/Waste | Spotted C-40 Crusher 12842 | -6/Waste | Discovered new exit (range 12) 12845 | -6/Waste | Identified exit to Factory 12845 | -6/Waste | Entered Factory 12944 | -6/Factory | Repaired Broken Shock Bomb Launcher 13033 | -6/Factory | Repaired Corrupted Plasma Lance? 13158 | -6/Factory | Build established: Hacker-Sprinter 13185 | -6/Factory | Entered another Factory area 13185 | -5/Factory | Evolved 2 slots: Propulsion x1, Utility x1 13370 | -5/Factory | Identified exit to Upper Caves 13595 | -5/Factory | Discovered new exit (range 14) 13612 | -5/Factory | Identified exit to Factory 13644 | -5/Factory | Sucked down chute 13644 | -5/Factory | Entered Waste 13647 | -5/Waste | Spotted C-40 Crusher 13657 | -5/Waste | Spotted C-40 Crusher 13658 | -5/Waste | Spotted C-40 Crusher 13659 | -5/Waste | EMP discharged 13663 | -5/Waste | Spotted C-40 Crusher 13665 | -5/Waste | Spotted C-40 Crusher 13666 | -5/Waste | Spotted C-40 Crusher 13666 | -5/Waste | Discovered new exit (range 16) 13671 | -5/Waste | Identified exit to Factory 13671 | -5/Waste | Entered Factory 13716 | -5/Factory | Build established: Hacker-Mutant 13736 | -5/Factory | Fabricated Imp. Hacking Suite? 14026 | -5/Factory | Repaired Broken Cld. Aerolev Unit? 14052 | -5/Factory | Entered another Factory area 14052 | -4/Factory | Evolved 2 slots: Utility x2 14244 | -4/Factory | Central database locked down 14285 | -4/Factory | Identified exit to Research 14333 | -4/Factory | Discovered new exit (range 15) 14345 | -4/Factory | Identified exit to Upper Caves 14345 | -4/Factory | Entered Upper Caves 14345 | -4/Upper Caves | Spotted B-86 Titan 14347 | -4/Upper Caves | UFD Scientist delivered a prototype 14347 | -4/Upper Caves | Found Prototype Protection 14348 | -4/Upper Caves | Identified Enh. Scrap Shield 14652 | -4/Upper Caves | Build established: Hacker-Sprinter 14754 | -4/Upper Caves | Encountered a Warlord checkpoint 14931 | -4/Upper Caves | Attracted the attention of an 0b10 outpost 15010 | -4/Upper Caves | Discovered new exit (range 15) 15024 | -4/Upper Caves | Identified exit to Upper Caves 15024 | -4/Upper Caves | Entered another Upper Caves area 15153 | -4/Upper Caves | Learned 4 Research zone layouts 15313 | -4/Upper Caves | Destroyed 7 combat bots 15332 | -4/Upper Caves | Discovered new exit (range 5) 15333 | -4/Upper Caves | Identified exit to Warlord 15357 | -4/Upper Caves | Entered Warlord 15357 | -4/Warlord | Accompanied by 2 allies 15368 | -4/Warlord | System corruption cleaned by Quarantine Array 15477 | -4/Warlord | Found RU-N14's Throwing Claymores v3 15479 | -4/Warlord | Found RU-N14's Throwing Claymores v3 15481 | -4/Warlord | Found RU-N14's Throwing Claymores v3 15520 | -4/Warlord | Warlord's base attacked by MAIN.C 15546 | -4/Warlord | Found Vortex Cannon 15547 | -4/Warlord | Found Vortex Cannon 15649 | -4/Warlord | Rebuked by Warlord 15870 | -4/Warlord | Warlord forces counterattacked 15917 | -4/Warlord | Lost 3 allies 15974 | -4/Warlord | Lost 5 allies 16000 | -4/Warlord | Spotted Striker 16012 | -4/Warlord | Spotted Executioner 16035 | -4/Warlord | Opened side exit 16069 | -4/Warlord | Lost 18 allies 16195 | -4/Warlord | Warlord base infiltrated, sounded retreat 16264 | -4/Warlord | Discovered new exit (range 14) 16331 | -4/Warlord | Spotted Executioner 16375 | -4/Warlord | Lost 12 allies 16375 | -4/Warlord | Identified exit to Proximity Caves 16385 | -4/Warlord | Entered Proximity Caves 16385 | -3/Proximity Caves | Accompanied by 2 allies 16501 | -3/Proximity Caves | Discovered exit to Research (range 9) 16542 | -3/Proximity Caves | Encountered a Derelict sapper outpost 16651 | -3/Proximity Caves | Build established: Hacker-Mutant 16750 | -3/Proximity Caves | Received a Behemoth hack from an annoying Tinkerer 16832 | -3/Proximity Caves | Entered Research 16832 | -3/Research | Evolved 2 slots: Power x1, Propulsion x1 16833 | -3/Research | Identified exit to Quarantine 16836 | -3/Research | Loaded intel: 45 interactive machine locations 16837 | -3/Research | Loaded intel: 4 garrison access locations 17118 | -3/Research | Spotted B-90 Cyclops 17118 | -3/Research | Befriended a Behemoth using the annoying Tinkerer's hack 17126 | -3/Research | Entered Quarantine 17126 | -3/Quarantine | Accompanied by 1 ally 17126 | -3/Quarantine | Spotted Alpha 7 17219 | -3/Quarantine | Spotted Fortress 17235 | -3/Quarantine | Discovered new exit (range 6) 17235 | -3/Quarantine | Discovered new exit (range 6) 17236 | -3/Quarantine | Identified exit to Section 7 17237 | -3/Quarantine | Identified exit to Protoforge 17237 | -3/Quarantine | Entered Protoforge 17256 | -3/Protoforge | Spotted B-86 Titan 17258 | -3/Protoforge | Befriended a Behemoth using the annoying Tinkerer's hack 17266 | -3/Protoforge | Identified exit to Research 17286 | -3/Protoforge | Superfortress began startup sequence 17289 | -3/Protoforge | Build established: Hacker-Sprinter 17370 | -3/Protoforge | Spotted Hotshot 17370 | -3/Protoforge | Spotted Hotshot 17370 | -3/Protoforge | Spotted Hotshot 17370 | -3/Protoforge | Spotted Hotshot 17404 | -3/Protoforge | Garrison activated, responded to threat 17438 | -3/Protoforge | Found Cep. RG22 Armor 17456 | -3/Protoforge | Spotted Immortal 17457 | -3/Protoforge | Spotted Immortal 17457 | -3/Protoforge | Spotted Immortal 17487 | -3/Protoforge | Search patrols dispatched 17520 | -3/Protoforge | Destroyed Immortal 17536 | -3/Protoforge | Spotted Immortal 17536 | -3/Protoforge | Spotted Immortal 17560 | -3/Protoforge | Destroyed Immortal 17589 | -3/Protoforge | Destroyed Immortal 17591 | -3/Protoforge | Found Corrupted Exp. Jetlance 17592 | -3/Protoforge | System corruption reached 10% 17642 | -3/Protoforge | Lost 3 parts (1p1u1w) 17700 | -3/Protoforge | Lost 3 parts (2p1n) 17735 | -3/Protoforge | Found Cep. Energy Mantle 17821 | -3/Protoforge | Spotted Decapitator 17821 | -3/Protoforge | Spotted Decapitator 17821 | -3/Protoforge | Spotted Decapitator 17824 | -3/Protoforge | Destroyed Immortal 17840 | -3/Protoforge | Destroyed Immortal 17857 | -3/Protoforge | Found Cep. Countertargeting System 17913 | -3/Protoforge | Spotted Decapitator 17917 | -3/Protoforge | System corruption reached 30% 17932 | -3/Protoforge | Spotted Immortal 17936 | -3/Protoforge | Spotted Immortal 17938 | -3/Protoforge | Spotted Immortal 17983 | -3/Protoforge | Build established: Hacker-Mutant 18090 | -3/Protoforge | Destroyed Immortal 18094 | -3/Protoforge | Destroyed Immortal 18139 | -3/Protoforge | Destroyed Immortal 18196 | -3/Protoforge | Spotted Immortal 18196 | -3/Protoforge | Spotted Immortal 18333 | -3/Protoforge | Lost 3 parts (2u1w) 18519 | -3/Protoforge | Destroyed Immortal 18526 | -3/Protoforge | Destroyed Immortal 18553 | -3/Protoforge | Found Cep. Core Shell 18572 | -3/Protoforge | Destroyed Decapitator 18572 | -3/Protoforge | Destroyed Decapitator 18585 | -3/Protoforge | Destroyed Decapitator 18663 | -3/Protoforge | Build established: Scavenger-Mutant 18818 | -3/Protoforge | Spotted V860-q 18835 | -3/Protoforge | Found Cep. Rapid Grenade Launcher 19012 | -3/Protoforge | Spotted Decapitator 19012 | -3/Protoforge | Spotted Decapitator 19012 | -3/Protoforge | Spotted V958-z 19012 | -3/Protoforge | Spotted V311-m 19040 | -3/Protoforge | Destroyed Decapitator 19133 | -3/Protoforge | Destroyed Decapitator 19133 | -3/Protoforge | Destroyed Decapitator 19135 | -3/Protoforge | Destroyed Decapitator 19205 | -3/Protoforge | Lost 3 parts (1u2w) 19258 | -3/Protoforge | Found Cep. Heavy Railcannon 19263 | -3/Protoforge | Found Cep. Lightning Penetrator 19265 | -3/Protoforge | Found Cep. Helical Railcannon 19322 | -3/Protoforge | Found Cep. Hypertargeting System 19328 | -3/Protoforge | Found Faulty Cep. Countertargeting System 19371 | -3/Protoforge | Found Crosscalibrator 19407 | -3/Protoforge | Found Exp. Remote Shield 19418 | -3/Protoforge | Found Faulty Exp. Remote Shield 19463 | -3/Protoforge | Build established: Mutant 19487 | -3/Protoforge | First assault squad dispatched 19593 | -3/Protoforge | Found Exp. Active Sensor Suite 19620 | -3/Protoforge | Destroyed V958-z 19670 | -3/Protoforge | Lost 3 parts (1p2u) 19741 | -3/Protoforge | Spotted Hotshot 19741 | -3/Protoforge | Spotted Hotshot 19741 | -3/Protoforge | Spotted Hotshot 19753 | -3/Protoforge | Spotted Hotshot 19757 | -3/Protoforge | Entered Research 19757 | -2/Research | Evolved 2 slots: Propulsion x1, Utility x1 19784 | -2/Research | Lost 4 parts (1n3u) 19987 | -2/Research | Spotted B-90 Cyclops 20018 | -2/Research | Core integrity fell below 50% 20064 | -2/Research | Core integrity fell below 20% 20065 | -2/Research | System corruption reached 10% 20068 | -2/Research | Destroyed by P-80 Master with Gamma Rifle Last Messages --------------- 19974_ W-44 Eye sends out distress signal. 19978_ Nuclear Pulse Array destroyed. 19983_ System corrupted: Substantial component data lost. 19987_ ALERT: Potential suspicious activity detected, Programmers report to Research Zone 6D. 20018_ Slammed into G-73 Enforcer. 20022_ PRG1GUJ&